[Event "*** Titled Tuesday Blitz"]
[Site "Chess.com"]
[Date "2021.04.20"]
[Round "3"]
[White "ShahMatKanal"]
[Black "Kapibara_Warri0r"]
[Result "1-0"]
[WhiteElo "2393"]
[BlackElo "2227"]
[TimeControl "180+1"]
[EndTime "10:28:52 PDT"]
[Termination "ShahMatKanal won by resignation"]

1. e4 {[%clk 0:03:00.9]} 1... c6 {[%clk 0:02:57.5]} 2. d4 {[%clk 0:03:00.3]}
2... d5 {[%clk 0:02:57.6]} 3. exd5 {[%clk 0:03:01.2]} 3... cxd5 {[%clk
0:02:57.6]} 4. Bd3 {[%clk 0:03:01.3]} 4... Nc6 {[%clk 0:02:57.9]} 5. c3 {[%clk
0:03:01.4]} 5... Nf6 {[%clk 0:02:57.7]} 6. h3 {[%clk 0:03:01]} 6... e6 {[%clk
0:02:58.2]} 7. Nf3 {[%clk 0:03:01.4]} 7... Bd6 {[%clk 0:02:58.8]} 8. O-O {[%clk
0:03:02.3]} 8... O-O {[%clk 0:02:58.4]} 9. Re1 {[%clk 0:03:02.9]} 9... h6 {[%clk
0:02:57.7]} 10. Nbd2 {[%clk 0:03:03.3]} 10... Qc7 {[%clk 0:02:51.7]} 11. Qe2
{[%clk 0:03:03.1]} 11... b6 {[%clk 0:02:45.3]} 12. Nf1 {[%clk 0:03:02.6]} 12...
Bb7 {[%clk 0:02:44.6]} 13. Ne3 {[%clk 0:03:00.3]} 13... e5 {[%clk 0:02:34.7]}
14. dxe5 {[%clk 0:02:56.9]} 14... Nxe5 {[%clk 0:02:35.6]} 15. Nxe5 {[%clk
0:02:53.6]} 15... Bxe5 {[%clk 0:02:36.5]} 16. Ng4 {[%clk 0:02:54.1]} 16... Nxg4
{[%clk 0:02:23.1]} 17. Qxg4 {[%clk 0:02:53.7]} 17... Bc8 {[%clk 0:01:58.7]} 18.
Qh5 {[%clk 0:02:33.7]} 18... Bxc3 {[%clk 0:01:02.3]} 19. Bxh6 {[%clk 0:01:58.1]}
19... g6 {[%clk 0:00:31.5]} 20. Bxg6 {[%clk 0:01:31.3]} 20... fxg6 {[%clk
0:00:32.4]} 21. Qxd5+ {[%clk 0:01:31.2]} 21... Kh7 {[%clk 0:00:21.9]} 22. Bxf8
{[%clk 0:01:16.8]} 22... Bb7 {[%clk 0:00:15.5]} 23. Qd6 {[%clk 0:00:18.7]} 23...
Qxd6 {[%clk 0:00:13.6]} 24. Bxd6 {[%clk 0:00:19.6]} 24... Bxe1 {[%clk
0:00:13.8]} 25. Rxe1 {[%clk 0:00:20]} 25... Bd5 {[%clk 0:00:11.4]} 26. Re7+
{[%clk 0:00:18.5]} 26... Kg8 {[%clk 0:00:10]} 27. b3 {[%clk 0:00:16.4]} 27...
Rd8 {[%clk 0:00:07.3]} 28. Be5 {[%clk 0:00:16.3]} 28... Bf7 {[%clk 0:00:06.5]}
29. Rxa7 {[%clk 0:00:15.8]} 29... b5 {[%clk 0:00:05.4]} 30. a4 {[%clk
0:00:14.6]} 30... bxa4 {[%clk 0:00:03.6]} 31. bxa4 {[%clk 0:00:15.5]} 31... Re8
{[%clk 0:00:03.2]} 32. f4 {[%clk 0:00:14.9]} 32... g5 {[%clk 0:00:03]} 33. Kh2
{[%clk 0:00:08.9]} 33... gxf4 {[%clk 0:00:03.2]} 34. Bxf4 {[%clk 0:00:09.8]}
34... Re4 {[%clk 0:00:02.5]} 35. Kg3 {[%clk 0:00:08.8]} 35... Rb4 {[%clk
0:00:02.3]} 36. Ra8+ {[%clk 0:00:06.6]} 36... Kh7 {[%clk 0:00:02.3]} 37. Ra7
{[%clk 0:00:05.9]} 37... Kg6 {[%clk 0:00:02.5]} 38. a5 {[%clk 0:00:06]} 38...
Rb3+ {[%clk 0:00:02.7]} 39. Kf2 {[%clk 0:00:05.6]} 39... Rb2+ {[%clk 0:00:02.7]}
40. Kg3 {[%clk 0:00:05.6]} 40... Bd5 {[%clk 0:00:02.7]} 41. Ra6+ {[%clk
0:00:04.5]} 41... Kf5 {[%clk 0:00:02.4]} 42. Bc7 {[%clk 0:00:03.7]} 42... Rxg2+
{[%clk 0:00:03.3]} 43. Kh4 {[%clk 0:00:03.9]} 43... Rd2 {[%clk 0:00:03.3]} 44.
Rd6 {[%clk 0:00:03.7]} 44... Ke4 {[%clk 0:00:03.9]} 45. Kg5 {[%clk 0:00:03.4]}
45... Rg2+ {[%clk 0:00:03.7]} 46. Kf6 {[%clk 0:00:03.8]} 46... Rf2+ {[%clk
0:00:03.1]} 47. Ke7 {[%clk 0:00:03.6]} 47... Rg2 {[%clk 0:00:02.7]} 48. a6
{[%clk 0:00:03.3]} 48... Rg7+ {[%clk 0:00:02.8]} 49. Kd8 {[%clk 0:00:03.6]}
49... Rg8+ {[%clk 0:00:03.5]} 50. Kd7 {[%clk 0:00:03.5]} 50... Rg7+ {[%clk
0:00:04.2]} 51. Kc8 {[%clk 0:00:03.6]} 51... Rg8+ {[%clk 0:00:04.5]} 52. Bd8
{[%clk 0:00:03.7]} 52... Rg7 {[%clk 0:00:04.4]} 53. Bc7 {[%clk 0:00:02.4]} 53...
Rg8+ {[%clk 0:00:04.4]} 54. Rd8 {[%clk 0:00:02.9]} 54... Rg7 {[%clk 0:00:04.3]}
55. a7 {[%clk 0:00:02.7]} 55... Rg6 {[%clk 0:00:03.7]} 56. Rxd5 {[%clk
0:00:02.8]} 56... Kxd5 {[%clk 0:00:04.1]} 57. a8=Q+ {[%clk 0:00:03.2]} 57... Ke6
{[%clk 0:00:04.8]} 58. h4 {[%clk 0:00:03.6]} 58... Rg8+ {[%clk 0:00:04]} 59. Bd8
{[%clk 0:00:04.1]} 59... Kf7 {[%clk 0:00:04.1]} 60. Qa2+ {[%clk 0:00:04.3]}
60... Kg7 {[%clk 0:00:04.3]} 61. Qxg8+ {[%clk 0:00:05]} 61... Kxg8 {[%clk
0:00:04.6]} 62. Kd7 {[%clk 0:00:05.6]} 62... Kh7 {[%clk 0:00:05.2]} 63. Bg5
{[%clk 0:00:06.5]} 63... Kh8 {[%clk 0:00:05.8]} 64. Ke6 {[%clk 0:00:07.4]} 64...
Kh7 {[%clk 0:00:06.7]} 65. Kf6 {[%clk 0:00:07.7]} 65... Kh8 {[%clk 0:00:07.6]}
66. Kg6 {[%clk 0:00:07.8]} 66... Kg8 {[%clk 0:00:07.9]} 67. h5 {[%clk
0:00:08.3]} 67... Kh8 {[%clk 0:00:08.8]} 68. Bf6+ {[%clk 0:00:08.5]} 68... Kg8
{[%clk 0:00:09.7]} 69. h6 {[%clk 0:00:09.2]} 69... Kf8 {[%clk 0:00:09.6]} 70. h7
{[%clk 0:00:10.1]} 1-0

[Event "*** Titled Tuesday Blitz"]
[Site "Chess.com"]
[Date "2021.04.20"]
[Round "3"]
[White "Bad_left_hook"]
[Black "bocah_sakit"]
[Result "1/2-1/2"]
[WhiteElo "2632"]
[BlackElo "2818"]
[TimeControl "180+1"]
[EndTime "10:28:53 PDT"]
[Termination "Game drawn - insufficient material"]

1. b3 {[%clk 0:02:59]} 1... Nf6 {[%clk 0:03:00.1]} 2. Bb2 {[%clk 0:02:59.9]}
2... g6 {[%clk 0:02:59.2]} 3. Nf3 {[%clk 0:02:59.3]} 3... Bg7 {[%clk 0:02:58.4]}
4. e3 {[%clk 0:02:59.7]} 4... O-O {[%clk 0:02:58.8]} 5. Be2 {[%clk 0:02:59.7]}
5... d6 {[%clk 0:02:59.5]} 6. O-O {[%clk 0:02:59.8]} 6... e5 {[%clk 0:03:00.1]}
7. d3 {[%clk 0:03:00.1]} 7... Nh5 {[%clk 0:02:59.9]} 8. Nfd2 {[%clk 0:02:53]}
8... Nf6 {[%clk 0:02:57.8]} 9. Nc3 {[%clk 0:02:52.7]} 9... Nc6 {[%clk
0:02:56.3]} 10. Nf3 {[%clk 0:02:49]} 10... h6 {[%clk 0:02:49.8]} 11. Nb1 {[%clk
0:02:37.3]} 11... Nh7 {[%clk 0:02:49.5]} 12. c4 {[%clk 0:02:24.2]} 12... f5
{[%clk 0:02:44.4]} 13. Nc3 {[%clk 0:02:20.6]} 13... Ng5 {[%clk 0:02:43.8]} 14.
Nxg5 {[%clk 0:02:13.5]} 14... Qxg5 {[%clk 0:02:44.7]} 15. Nd5 {[%clk 0:02:10.2]}
15... Rf7 {[%clk 0:02:45]} 16. f4 {[%clk 0:02:05.4]} 16... Qd8 {[%clk 0:02:45]}
17. fxe5 {[%clk 0:02:00.3]} 17... dxe5 {[%clk 0:02:45.9]} 18. Qc2 {[%clk
0:01:47.7]} 18... Be6 {[%clk 0:02:46.2]} 19. Bf3 {[%clk 0:01:46.4]} 19... a5
{[%clk 0:02:42.6]} 20. a3 {[%clk 0:01:45]} 20... Qd7 {[%clk 0:02:38]} 21. b4
{[%clk 0:01:29.9]} 21... Raf8 {[%clk 0:02:33.7]} 22. b5 {[%clk 0:01:25.7]} 22...
Nd8 {[%clk 0:02:33.3]} 23. Rad1 {[%clk 0:01:06.8]} 23... b6 {[%clk 0:02:27.6]}
24. e4 {[%clk 0:00:55.2]} 24... Nb7 {[%clk 0:02:21.5]} 25. exf5 {[%clk
0:00:50.6]} 25... Bxf5 {[%clk 0:02:20.8]} 26. Ne3 {[%clk 0:00:44.7]} 26... Nc5
{[%clk 0:02:11.7]} 27. Nxf5 {[%clk 0:00:37.7]} 27... Rxf5 {[%clk 0:02:12.6]} 28.
Bd5+ {[%clk 0:00:37.4]} 28... Kh7 {[%clk 0:02:12.7]} 29. Qe2 {[%clk 0:00:26.3]}
29... Rxf1+ {[%clk 0:02:07.6]} 30. Rxf1 {[%clk 0:00:24.9]} 30... Rxf1+ {[%clk
0:02:08.5]} 31. Qxf1 {[%clk 0:00:24.8]} 31... Qf5 {[%clk 0:02:09.4]} 32. Qxf5
{[%clk 0:00:15.1]} 32... gxf5 {[%clk 0:02:10.3]} 33. Bc3 {[%clk 0:00:12]} 33...
Nxd3 {[%clk 0:02:10.2]} 34. Be6 {[%clk 0:00:11.9]} 34... Kg6 {[%clk 0:02:10.6]}
35. Bd7 {[%clk 0:00:12.3]} 35... e4 {[%clk 0:02:08.1]} 36. Bxg7 {[%clk
0:00:11.1]} 36... Kxg7 {[%clk 0:01:58.6]} 37. Bxf5 {[%clk 0:00:12]} 37... Nc5
{[%clk 0:01:59.4]} 38. Kf2 {[%clk 0:00:11.1]} 38... Kf6 {[%clk 0:02:00]} 39. g4
{[%clk 0:00:10.5]} 39... h5 {[%clk 0:01:52.6]} 40. Ke3 {[%clk 0:00:09.4]} 40...
Ke5 {[%clk 0:01:40.3]} 41. h3 {[%clk 0:00:07.3]} 41... h4 {[%clk 0:01:39.6]} 42.
Bh7 {[%clk 0:00:06.7]} 42... Ne6 {[%clk 0:01:39.4]} 43. Bxe4 {[%clk 0:00:06.5]}
43... Nf4 {[%clk 0:01:39.3]} 44. g5 {[%clk 0:00:05.7]} 44... Nxh3 {[%clk
0:01:39.8]} 45. g6 {[%clk 0:00:06.2]} 45... Kf6 {[%clk 0:01:40.4]} 46. Kd4
{[%clk 0:00:04.4]} 46... Ng5 {[%clk 0:01:37.3]} 47. Bg2 {[%clk 0:00:03.6]} 47...
Kxg6 {[%clk 0:01:36.8]} 48. Kd5 {[%clk 0:00:04]} 48... Kf6 {[%clk 0:01:04.8]}
49. c5 {[%clk 0:00:04.3]} 49... bxc5 {[%clk 0:00:40.6]} 50. Kxc5 {[%clk
0:00:05.2]} 50... Ke7 {[%clk 0:00:41.4]} 51. b6 {[%clk 0:00:05.1]} 51... cxb6+
{[%clk 0:00:24]} 52. Kxb6 {[%clk 0:00:06]} 52... Kd6 {[%clk 0:00:14.4]} 53. Kxa5
{[%clk 0:00:05.8]} 53... Kc5 {[%clk 0:00:15.3]} 54. a4 {[%clk 0:00:05.9]} 54...
Ne6 {[%clk 0:00:14.4]} 55. Ka6 {[%clk 0:00:05.8]} 55... Nd8 {[%clk 0:00:11.8]}
56. a5 {[%clk 0:00:05.4]} 56... Nc6 {[%clk 0:00:09.4]} 57. Bh1 {[%clk
0:00:03.8]} 57... Nb4+ {[%clk 0:00:01.8]} 58. Ka7 {[%clk 0:00:03.2]} 58... Kb5
{[%clk 0:00:02.7]} 59. Bg2 {[%clk 0:00:01.9]} 59... Kxa5 {[%clk 0:00:02.8]} 60.
Kb7 {[%clk 0:00:02.8]} 60... Kb5 {[%clk 0:00:03.7]} 61. Kc7 {[%clk 0:00:03.3]}
61... Kc5 {[%clk 0:00:04.6]} 62. Kd7 {[%clk 0:00:03.8]} 62... Kd4 {[%clk
0:00:05]} 63. Ke6 {[%clk 0:00:04.2]} 63... Ke3 {[%clk 0:00:05.6]} 64. Kf5 {[%clk
0:00:04.7]} 64... Kf2 {[%clk 0:00:02.2]} 65. Kg4 {[%clk 0:00:04.9]} 65... Kxg2
{[%clk 0:00:02.7]} 66. Kxh4 {[%clk 0:00:05.3]} 1/2-1/2

[Event "*** Titled Tuesday Blitz"]
[Site "Chess.com"]
[Date "2021.04.20"]
[Round "3"]
[White "superchess02"]
[Black "Gerodot71"]
[Result "1/2-1/2"]
[WhiteElo "2734"]
[BlackElo "2578"]
[TimeControl "180+1"]
[EndTime "10:28:54 PDT"]
[Termination "Game drawn - insufficient material"]

1. c4 {[%clk 0:02:54.3]} 1... e5 {[%clk 0:02:59.5]} 2. Nc3 {[%clk 0:02:55]} 2...
Nf6 {[%clk 0:02:59.6]} 3. g3 {[%clk 0:02:55.6]} 3... c6 {[%clk 0:02:59.5]} 4.
Bg2 {[%clk 0:02:55.6]} 4... d5 {[%clk 0:02:59.7]} 5. cxd5 {[%clk 0:02:55.4]}
5... cxd5 {[%clk 0:03:00.6]} 6. Nf3 {[%clk 0:02:55.8]} 6... Nc6 {[%clk
0:02:45.5]} 7. d4 {[%clk 0:02:55.7]} 7... e4 {[%clk 0:02:42.2]} 8. Ne5 {[%clk
0:02:55.2]} 8... Be7 {[%clk 0:02:42.4]} 9. O-O {[%clk 0:02:53.4]} 9... O-O
{[%clk 0:02:41.9]} 10. Bg5 {[%clk 0:02:22.3]} 10... Be6 {[%clk 0:02:41.3]} 11.
Rc1 {[%clk 0:02:17.3]} 11... Rc8 {[%clk 0:02:35.7]} 12. Qa4 {[%clk 0:02:08.1]}
12... a6 {[%clk 0:02:21.6]} 13. Rfd1 {[%clk 0:01:56.7]} 13... h6 {[%clk
0:02:14.7]} 14. Bxf6 {[%clk 0:01:13.3]} 14... Bxf6 {[%clk 0:02:15.6]} 15. Nxc6
{[%clk 0:01:13.5]} 15... Rxc6 {[%clk 0:02:14.5]} 16. e3 {[%clk 0:01:07.7]} 16...
Qb6 {[%clk 0:01:59.8]} 17. Rc2 {[%clk 0:01:01.8]} 17... Rfc8 {[%clk 0:01:57.6]}
18. Rdc1 {[%clk 0:01:01.9]} 18... h5 {[%clk 0:01:41.1]} 19. h4 {[%clk
0:00:58.2]} 19... Be7 {[%clk 0:01:25.2]} 20. Bxe4 {[%clk 0:00:21.9]} 20... dxe4
{[%clk 0:00:40.3]} 21. d5 {[%clk 0:00:22.8]} 21... Rxc3 {[%clk 0:00:40.9]} 22.
Rxc3 {[%clk 0:00:21.7]} 22... Rxc3 {[%clk 0:00:41.3]} 23. Rxc3 {[%clk
0:00:22.6]} 23... Bxd5 {[%clk 0:00:41.7]} 24. Qe8+ {[%clk 0:00:23.1]} 24... Bf8
{[%clk 0:00:41.6]} 25. Rc8 {[%clk 0:00:23.8]} 25... Qb4 {[%clk 0:00:38.3]} 26.
a3 {[%clk 0:00:23.1]} 26... Qd6 {[%clk 0:00:31.6]} 27. Rd8 {[%clk 0:00:22.3]}
27... Qc5 {[%clk 0:00:30.8]} 28. b4 {[%clk 0:00:20.6]} 28... Qc1+ {[%clk
0:00:20.6]} 29. Kg2 {[%clk 0:00:20.6]} 29... Bc4 {[%clk 0:00:20.1]} 30. Qxf8+
{[%clk 0:00:20.6]} 30... Kh7 {[%clk 0:00:20.7]} 31. Qg8+ {[%clk 0:00:20.6]}
31... Kg6 {[%clk 0:00:16]} 32. Rd6+ {[%clk 0:00:20.6]} 32... f6 {[%clk
0:00:16.5]} 33. Qe8+ {[%clk 0:00:20.6]} 33... Kh6 {[%clk 0:00:15.9]} 34. Qxe4
{[%clk 0:00:15.3]} 34... Qf1+ {[%clk 0:00:15.9]} 35. Kh2 {[%clk 0:00:16]} 35...
Qxf2+ {[%clk 0:00:15.1]} 36. Qg2 {[%clk 0:00:16]} 36... Qxe3 {[%clk 0:00:14.5]}
37. Qd2 {[%clk 0:00:16]} 37... Qxd2+ {[%clk 0:00:13.8]} 38. Rxd2 {[%clk
0:00:16.9]} 38... Bb5 {[%clk 0:00:14.2]} 39. Rd6 {[%clk 0:00:16.2]} 39... Bc6
{[%clk 0:00:14.3]} 40. Kg1 {[%clk 0:00:15.8]} 40... Kg6 {[%clk 0:00:14.7]} 41.
Kf2 {[%clk 0:00:15.7]} 41... Kf5 {[%clk 0:00:15.3]} 42. Rd8 {[%clk 0:00:15.8]}
42... g5 {[%clk 0:00:13.8]} 43. Rh8 {[%clk 0:00:16.4]} 43... Kg6 {[%clk
0:00:13.2]} 44. hxg5 {[%clk 0:00:15.1]} 44... fxg5 {[%clk 0:00:14.1]} 45. Ke3
{[%clk 0:00:16]} 45... Bg2 {[%clk 0:00:11]} 46. Kd4 {[%clk 0:00:15.7]} 46... Bc6
{[%clk 0:00:11.6]} 47. Kc5 {[%clk 0:00:16.1]} 47... Bf3 {[%clk 0:00:11.7]} 48.
Kb6 {[%clk 0:00:16.3]} 48... Kf5 {[%clk 0:00:12]} 49. a4 {[%clk 0:00:12.1]}
49... Kg4 {[%clk 0:00:11.8]} 50. Rg8 {[%clk 0:00:12.7]} 50... Bd5 {[%clk
0:00:10.5]} 51. Rg7 {[%clk 0:00:12.2]} 51... Bc6 {[%clk 0:00:11]} 52. b5 {[%clk
0:00:12.2]} 52... axb5 {[%clk 0:00:11.9]} 53. axb5 {[%clk 0:00:13.1]} 53... Be4
{[%clk 0:00:11.3]} 54. Ka7 {[%clk 0:00:11.5]} 54... h4 {[%clk 0:00:06.2]} 55.
gxh4 {[%clk 0:00:11.2]} 55... Kxh4 {[%clk 0:00:07.1]} 56. Re7 {[%clk 0:00:08.6]}
56... Bd5 {[%clk 0:00:05.7]} 57. b6 {[%clk 0:00:08.3]} 57... g4 {[%clk
0:00:05.8]} 58. Rh7+ {[%clk 0:00:08.6]} 58... Kg5 {[%clk 0:00:04.8]} 59. Rg7+
{[%clk 0:00:06.5]} 59... Kf4 {[%clk 0:00:05.3]} 60. Rd7 {[%clk 0:00:05.8]} 60...
Bc6 {[%clk 0:00:05.1]} 61. Rxb7 {[%clk 0:00:06.1]} 61... Bxb7 {[%clk 0:00:04.3]}
62. Kxb7 {[%clk 0:00:07]} 62... g3 {[%clk 0:00:05.1]} 63. Ka6 {[%clk 0:00:07.9]}
63... g2 {[%clk 0:00:06]} 64. b7 {[%clk 0:00:08.8]} 64... g1=Q {[%clk
0:00:06.9]} 65. b8=Q+ {[%clk 0:00:09.7]} 65... Kf3 {[%clk 0:00:07.2]} 66. Qf8+
{[%clk 0:00:10]} 66... Kg2 {[%clk 0:00:07.4]} 67. Qg7+ {[%clk 0:00:10.1]} 67...
Kf1 {[%clk 0:00:07.9]} 68. Qxg1+ {[%clk 0:00:11]} 68... Kxg1 {[%clk 0:00:08.8]}
1/2-1/2

[Event "*** Titled Tuesday Blitz"]
[Site "Chess.com"]
[Date "2021.04.20"]
[Round "3"]
[White "Mr_Sinigami"]
[Black "eCztery"]
[Result "1-0"]
[WhiteElo "2596"]
[BlackElo "2390"]
[TimeControl "180+1"]
[EndTime "10:29:00 PDT"]
[Termination "Mr_Sinigami won by checkmate"]

1. d4 {[%clk 0:03:00.9]} 1... Nf6 {[%clk 0:02:43.9]} 2. Nf3 {[%clk 0:03:00]}
2... e6 {[%clk 0:02:43.6]} 3. Bf4 {[%clk 0:03:00]} 3... d5 {[%clk 0:02:40.3]} 4.
e3 {[%clk 0:03:00.1]} 4... c5 {[%clk 0:02:40.1]} 5. Nbd2 {[%clk 0:02:59.5]} 5...
Nc6 {[%clk 0:02:40.3]} 6. c3 {[%clk 0:02:59.2]} 6... Bd6 {[%clk 0:02:40.9]} 7.
Bg3 {[%clk 0:02:59.2]} 7... O-O {[%clk 0:02:41.3]} 8. Bb5 {[%clk 0:02:58.8]}
8... Qe7 {[%clk 0:02:34.2]} 9. Bxc6 {[%clk 0:02:57.3]} 9... bxc6 {[%clk
0:02:34.3]} 10. Qa4 {[%clk 0:02:57.9]} 10... Bxg3 {[%clk 0:01:57.6]} 11. hxg3
{[%clk 0:02:54.8]} 11... c4 {[%clk 0:01:58.2]} 12. Qxc6 {[%clk 0:02:24.2]} 12...
Bd7 {[%clk 0:01:57.5]} 13. Qa6 {[%clk 0:02:08.5]} 13... Rfb8 {[%clk 0:01:50.1]}
14. b4 {[%clk 0:02:08]} 14... Rb6 {[%clk 0:01:35.4]} 15. Qa5 {[%clk 0:02:05.6]}
15... Qd6 {[%clk 0:01:03.2]} 16. Ne5 {[%clk 0:01:50.6]} 16... Ra6 {[%clk
0:00:25.8]} 17. Qc5 {[%clk 0:01:43.2]} 17... Qb8 {[%clk 0:00:26.1]} 18. a4
{[%clk 0:01:22.7]} 18... Bxa4 {[%clk 0:00:21.2]} 19. O-O {[%clk 0:01:21.4]}
19... Ne8 {[%clk 0:00:17.8]} 20. Ra3 {[%clk 0:01:13]} 20... f6 {[%clk
0:00:17.6]} 21. Rfa1 {[%clk 0:01:07.3]} 21... fxe5 {[%clk 0:00:17.3]} 22. Rxa4
{[%clk 0:01:07.4]} 22... Rxa4 {[%clk 0:00:17.8]} 23. Rxa4 {[%clk 0:01:07.2]}
23... e4 {[%clk 0:00:17.4]} 24. Ra6 {[%clk 0:01:04.6]} 24... Nf6 {[%clk
0:00:16.5]} 25. Rxe6 {[%clk 0:01:03.6]} 25... Qb7 {[%clk 0:00:13.9]} 26. Re7
{[%clk 0:01:00.6]} 26... Qb6 {[%clk 0:00:11.8]} 27. Rc7 {[%clk 0:00:53.3]} 27...
Qa6 {[%clk 0:00:09.5]} 28. Qe7 {[%clk 0:00:49]} 28... Qa1+ {[%clk 0:00:07.6]}
29. Nf1 {[%clk 0:00:49]} 29... Nh5 {[%clk 0:00:03.6]} 30. Qf7+ {[%clk
0:00:48.6]} 30... Kh8 {[%clk 0:00:04.5]} 31. Qxh5 {[%clk 0:00:47.8]} 31... Qxc3
{[%clk 0:00:05.4]} 32. Qxd5 {[%clk 0:00:44.5]} 32... Rg8 {[%clk 0:00:04.1]} 33.
Rxc4 {[%clk 0:00:41.6]} 33... Qb3 {[%clk 0:00:04.5]} 34. Qe6 {[%clk 0:00:35.2]}
34... h6 {[%clk 0:00:04.4]} 35. Qc6 {[%clk 0:00:25.3]} 35... Kh7 {[%clk
0:00:03.1]} 36. Qxe4+ {[%clk 0:00:24.6]} 36... Kh8 {[%clk 0:00:04]} 37. Rc7
{[%clk 0:00:23.1]} 37... Rf8 {[%clk 0:00:03.8]} 38. Qe5 {[%clk 0:00:21.2]} 38...
Qg8 {[%clk 0:00:03.4]} 39. Rc6 {[%clk 0:00:20.5]} 39... Qh7 {[%clk 0:00:01.8]}
40. Rc7 {[%clk 0:00:17.2]} 40... Qg8 {[%clk 0:00:02.2]} 41. Rxa7 {[%clk
0:00:16.8]} 41... Re8 {[%clk 0:00:02.6]} 42. Re7 {[%clk 0:00:16.3]} 42... Rf8
{[%clk 0:00:03.5]} 43. b5 {[%clk 0:00:16.4]} 43... Qh7 {[%clk 0:00:03.3]} 44. b6
{[%clk 0:00:16.3]} 44... Rg8 {[%clk 0:00:03]} 45. b7 {[%clk 0:00:16.3]} 45...
Qb1 {[%clk 0:00:03.9]} 46. Rxg7 {[%clk 0:00:14.1]} 46... Rxg7 {[%clk 0:00:03.8]}
47. b8=Q+ {[%clk 0:00:14.3]} 47... Qxb8 {[%clk 0:00:03.4]} 48. Qxb8+ {[%clk
0:00:14.3]} 48... Kh7 {[%clk 0:00:04.3]} 49. Qe5 {[%clk 0:00:14.3]} 49... h5
{[%clk 0:00:05.2]} 50. Nh2 {[%clk 0:00:14]} 50... Kg6 {[%clk 0:00:05.2]} 51. Nf3
{[%clk 0:00:14.2]} 51... h4 {[%clk 0:00:05.6]} 52. Nxh4+ {[%clk 0:00:14.2]}
52... Kf7 {[%clk 0:00:06.5]} 53. Nf5 {[%clk 0:00:14.2]} 53... Rg6 {[%clk
0:00:07]} 54. d5 {[%clk 0:00:13.9]} 54... Ra6 {[%clk 0:00:07.9]} 55. d6 {[%clk
0:00:13.8]} 55... Rc6 {[%clk 0:00:07]} 56. Qe7+ {[%clk 0:00:13.3]} 56... Kg6
{[%clk 0:00:06.6]} 57. Nd4 {[%clk 0:00:12.6]} 57... Rc1+ {[%clk 0:00:04.3]} 58.
Kh2 {[%clk 0:00:12.9]} 58... Kh5 {[%clk 0:00:04.7]} 59. Qh7+ {[%clk 0:00:11.4]}
59... Kg5 {[%clk 0:00:05]} 60. f4+ {[%clk 0:00:11.1]} 60... Kf6 {[%clk
0:00:04.5]} 61. Qe7+ {[%clk 0:00:10.8]} 61... Kg6 {[%clk 0:00:05.4]} 62. f5+
{[%clk 0:00:10.9]} 62... Kh5 {[%clk 0:00:04.7]} 63. Qh7+ {[%clk 0:00:10.6]}
63... Kg4 {[%clk 0:00:03.5]} 64. Qh4# {[%clk 0:00:10.1]} 1-0

[Event "*** Titled Tuesday Blitz"]
[Site "Chess.com"]
[Date "2021.04.20"]
[Round "3"]
[White "KacperPolOK"]
[Black "prachiti01"]
[Result "1-0"]
[WhiteElo "2368"]
[BlackElo "2200"]
[TimeControl "180+1"]
[EndTime "10:29:01 PDT"]
[Termination "KacperPolOK won on time"]

1. e4 {[%clk 0:02:59.7]} 1... e6 {[%clk 0:02:59.9]} 2. d4 {[%clk 0:02:58.9]}
2... d5 {[%clk 0:03:00.8]} 3. Nd2 {[%clk 0:02:57.3]} 3... Nc6 {[%clk 0:02:59.4]}
4. Bb5 {[%clk 0:02:46.6]} 4... Bd7 {[%clk 0:02:54.1]} 5. c3 {[%clk 0:02:39]}
5... a6 {[%clk 0:02:10.2]} 6. Ba4 {[%clk 0:02:31.7]} 6... Nb8 {[%clk 0:02:00]}
7. Bc2 {[%clk 0:02:21.8]} 7... c5 {[%clk 0:01:58.1]} 8. exd5 {[%clk 0:02:16.3]}
8... exd5 {[%clk 0:01:57.8]} 9. Ngf3 {[%clk 0:02:16.6]} 9... Nf6 {[%clk
0:01:56.2]} 10. O-O {[%clk 0:02:16.2]} 10... cxd4 {[%clk 0:01:52.6]} 11. Nxd4
{[%clk 0:02:16.1]} 11... Be7 {[%clk 0:01:51.1]} 12. Nf5 {[%clk 0:02:10.2]} 12...
Bxf5 {[%clk 0:01:49.2]} 13. Bxf5 {[%clk 0:02:10.1]} 13... O-O {[%clk 0:01:49.7]}
14. Nb3 {[%clk 0:02:06.6]} 14... Nc6 {[%clk 0:01:48]} 15. Nd4 {[%clk 0:02:06.6]}
15... Bc5 {[%clk 0:01:43.6]} 16. Be3 {[%clk 0:02:05.2]} 16... Nxd4 {[%clk
0:01:41.1]} 17. Bxd4 {[%clk 0:02:04.9]} 17... Bxd4 {[%clk 0:01:41.1]} 18. Qxd4
{[%clk 0:02:05.8]} 18... Qd6 {[%clk 0:01:40.2]} 19. Rad1 {[%clk 0:02:03.9]}
19... Rad8 {[%clk 0:01:38.5]} 20. Rfe1 {[%clk 0:02:01.6]} 20... g6 {[%clk
0:01:28.5]} 21. Bc2 {[%clk 0:01:59.2]} 21... Rfe8 {[%clk 0:01:25.7]} 22. Rxe8+
{[%clk 0:01:57.3]} 22... Rxe8 {[%clk 0:01:26.6]} 23. f3 {[%clk 0:01:08.8]} 23...
Re2 {[%clk 0:01:03.2]} 24. Rd2 {[%clk 0:01:08.2]} 24... Re1+ {[%clk 0:01:00.5]}
25. Kf2 {[%clk 0:01:08.6]} 25... Re6 {[%clk 0:00:49.6]} 26. g3 {[%clk
0:01:05.4]} 26... Qc7 {[%clk 0:00:30.9]} 27. Bb3 {[%clk 0:01:01.8]} 27... Rd6
{[%clk 0:00:20.1]} 28. c4 {[%clk 0:01:00.5]} 28... Rd7 {[%clk 0:00:16.5]} 29. c5
{[%clk 0:00:53.1]} 29... Ne8 {[%clk 0:00:15.6]} 30. Bc2 {[%clk 0:00:51.1]} 30...
Qd8 {[%clk 0:00:12.3]} 31. b4 {[%clk 0:00:50.5]} 31... Nc7 {[%clk 0:00:11.3]}
32. a4 {[%clk 0:00:43.3]} 32... Ne6 {[%clk 0:00:11.3]} 33. Qe5 {[%clk
0:00:43.6]} 33... b6 {[%clk 0:00:08]} 34. c6 {[%clk 0:00:36.5]} 34... Re7 {[%clk
0:00:08]} 35. b5 {[%clk 0:00:36]} 35... axb5 {[%clk 0:00:07.7]} 36. axb5 {[%clk
0:00:35.3]} 36... d4 {[%clk 0:00:07.8]} 37. Be4 {[%clk 0:00:24]} 37... Nc7
{[%clk 0:00:07]} 38. Qxd4 {[%clk 0:00:23.2]} 38... Qxd4+ {[%clk 0:00:06.2]} 39.
Rxd4 {[%clk 0:00:24]} 39... Nxb5 {[%clk 0:00:06.8]} 40. Rb4 {[%clk 0:00:22.9]}
40... Nc7 {[%clk 0:00:06.1]} 41. Rxb6 {[%clk 0:00:22.8]} 41... f5 {[%clk
0:00:06.1]} 42. Bd3 {[%clk 0:00:20.1]} 42... Kf7 {[%clk 0:00:06.3]} 43. Bc4+
{[%clk 0:00:19.5]} 43... Kf6 {[%clk 0:00:06.3]} 44. Rb8 {[%clk 0:00:20.4]} 44...
Ke5 {[%clk 0:00:06.2]} 45. Rd8 {[%clk 0:00:20.1]} 45... Rg7 {[%clk 0:00:03.5]}
46. f4+ {[%clk 0:00:20.1]} 46... Kf6 {[%clk 0:00:03.1]} 47. Rd6+ {[%clk
0:00:19.5]} 47... Ke7 {[%clk 0:00:02.1]} 48. Rd7+ {[%clk 0:00:19.7]} 48... Kf8
{[%clk 0:00:02.6]} 49. Rd8+ {[%clk 0:00:16.3]} 49... Ke7 {[%clk 0:00:02.7]} 50.
Rc8 {[%clk 0:00:16.9]} 50... Kd6 {[%clk 0:00:02.7]} 51. Kf3 {[%clk 0:00:08.4]}
51... Kxc6 {[%clk 0:00:02.8]} 52. h4 {[%clk 0:00:08.2]} 52... Kd7 {[%clk
0:00:02.7]} 53. Rb8 {[%clk 0:00:07.9]} 53... Re7 {[%clk 0:00:03.2]} 54. h5
{[%clk 0:00:05.6]} 54... Kd6 {[%clk 0:00:03.5]} 55. hxg6 {[%clk 0:00:05.4]}
55... hxg6 {[%clk 0:00:03.3]} 56. Rg8 {[%clk 0:00:06.1]} 56... Ne8 {[%clk
0:00:02.8]} 57. Rxg6+ {[%clk 0:00:05.9]} 57... Kc5 {[%clk 0:00:03.1]} 58. Bg8
{[%clk 0:00:05]} 58... Ng7 {[%clk 0:00:03.5]} 59. Rf6 {[%clk 0:00:04.5]} 59...
Kd4 {[%clk 0:00:03.5]} 60. Bh7 {[%clk 0:00:04.4]} 60... Re3+ {[%clk 0:00:03.3]}
61. Kf2 {[%clk 0:00:05]} 61... Re7 {[%clk 0:00:02.4]} 62. Bxf5 {[%clk
0:00:04.9]} 62... Kc3 {[%clk 0:00:02.2]} 63. Bg6 {[%clk 0:00:04]} 63... Kd2
{[%clk 0:00:02.1]} 64. Kf3 {[%clk 0:00:04.3]} 64... Re3+ {[%clk 0:00:01.5]} 65.
Kg4 {[%clk 0:00:04.4]} 1-0